bitfinex-derivatives/quotes_ETHF0:USTF0_20250321
["timestamp","ask_amount","ask_price","bid_price","bid_amount"]
[1742552521357,1.02037,1961.0,1960.9,45.02822]
[1742552522058,4.22817,1961.0,1960.9,40.8]
[1742552522265,8.14417,1961.0,1960.9,40.8]
[1742552522659,1.02068,1960.4,1960.3,3.2078]
[1742552522860,7.1228,1960.5,1959.6,3.2078]
[1742552523160,3.2078,1959.9,1959.4,2.55296]
[1742552523359,0.6739,1960.3,1960.1,1.02081]
[1742552523556,0.00764,1960.5,1960.4,1.02068]
[1742552523763,0.00764,1960.5,1960.1,40.8]
[1742552523961,1.02068,1960.4,1960.3,1.4007]
[1742552524151,1.02079,1960.2,1960.1,40.8]
[1742552524360,1.02079,1960.2,1960.1,41.82079]
[1742552524953,4.22855,1960.3,1960.2,1.02079]
[1742552525267,0.00764,1960.5,1960.4,1.02068]
[1742552525664,1.02068,1960.4,1960.3,1.6714]
[1742552525961,1.02074,1960.3,1960.2,1.4002]
[1742552526956,6.5042,1960.3,1959.6,2.55265]
[1742552527167,1.02105,1959.8,1959.7,1.4002]
[1742552528362,1.0211,1959.6,1959.5,1.3644]
[1742552528668,4.2289,1959.6,1959.5,2.38555]
[1742552529261,4.2289,1959.6,1959.5,1.3644]
[1742552529662,1.02115,1959.5,1959.4,40.8]
[1742552529964,1.02121,1959.5,1959.2,2.55325]
[1742552530167,1.02104,1959.8,1959.7,1.02102]
[1742552530465,4.2288,1959.8,1959.7,40.8]
[1742552530967,4.2288,1959.8,1959.7,41.82105]
[1742552530968,3.2078,1959.8,1959.7,41.82105]
[1742552531160,0.00764,1959.9,1959.8,1.021]
[1742552531669,1.02087,1960.1,1960.0,1.02083]
[1742552531869,1.02082,1960.2,1960.1,1.02079]
[1742552532167,1.02074,1960.3,1960.2,1.02079]
[1742552532758,1.02074,1960.3,1960.2,0.03381109]
[1742552532966,4.22854,1960.3,1960.2,0.03381109]
[1742552533166,5.61294,1960.3,1960.2,1.33811109]
[1742552534560,9.56094,1960.3,1960.2,1.33811109]
[1742552534867,0.00764,1960.4,1960.3,1.02074]
[1742552535072,4.22836,1960.7,1960.6,1.02058]
[1742552535073,3.2078,1960.7,1960.6,1.02058]
[1742552535371,4.9695,1960.8,1960.7,1.02053]
[1742552535561,1.0205,1960.8,1960.7,1.02053]
[1742552535866,3.2078,1960.9,1960.8,1.02048]
[1742552536065,47.17,1961.2,1960.8,1.2984]
[1742552536262,1.02042,1960.9,1960.8,1.2984]
[1742552536572,1.02048,1960.8,1960.7,40.83381109]
[1742552536868,1.02048,1960.8,1960.7,43.15274109]
[1742552537372,0.00764,1961.0,1960.8,1.02048]
[1742552537571,1.02801,1961.0,1960.9,1.3115]
[1742552537867,1.02801,1961.0,1960.9,1.34531109]
[1742552538062,2.41931,1961.0,1960.9,1.34531109]
[1742552538266,2.41931,1961.0,1960.9,2.36573109]
[1742552538470,2.41931,1961.0,1960.9,1.34531109]
[1742552539773,1.02801,1961.0,1960.9,2.36573109]
[1742552540366,0.00764,1961.0,1960.9,2.36573109]
[1742552541265,1.02801,1961.0,1960.9,1.34531109]
[1742552541664,2.37211,1961.0,1960.9,1.34531109]
[1742552542663,1.02801,1961.0,1960.9,1.34531109]
[1742552542867,0.00764,1961.0,1960.9,2.36573109]
[1742552544163,1.02801,1961.0,1960.9,3.01333109]
[1742552544368,1.02801,1961.0,1960.9,43.81333109]
[1742552544770,1.02801,1961.0,1960.9,1.34531109]
[1742552545178,2.35911,1961.0,1960.9,1.34531109]
[1742552545766,2.35911,1961.0,1960.9,0.03381109]
[1742552545964,6.28111,1961.0,1960.9,0.01853109]
[1742552547081,1.02053,1960.7,1960.6,1.4169]
[1742552547282,4.94153,1960.7,1960.6,1.4169]
[1742552547574,4.94153,1960.7,1960.6,2.43748]
[1742552548171,4.22832,1960.8,1960.7,1.02053]
[1742552548371,3.2078,1960.8,1960.7,2.37983]
[1742552548578,4.22828,1960.8,1960.7,2.37983]
[1742552550979,4.22828,1960.8,1960.7,1.3593]
[1742552552165,4.22828,1960.8,1960.7,2.37983]
[1742552553276,3.2078,1961.1,1960.7,15.90303]
[1742552553481,1.01994,1961.9,1961.8,1.01991]
[1742552553674,1.01996,1961.9,1961.8,1.01994]
[1742552553976,1.01996,1961.9,1961.8,1.01992]
[1742552554277,1.02001,1961.8,1961.7,1.01999]
[1742552554572,1.02001,1961.8,1961.7,41.81999]
[1742552555874,1.02001,1961.7,1961.6,1.02768]
[1742552556172,2.42291,1961.7,1961.6,1.02768]
[1742552556377,2.42291,1961.7,1961.6,1.0277]
[1742552556973,1.02001,1961.8,1961.7,1.02001]
[1742552557178,1.02001,1961.8,1961.7,2.41171]
[1742552557378,4.61834,1961.9,1961.8,1.01996]
[1742552557379,5.63828,1961.9,1961.8,1.01996]
[1742552557779,1.01996,1961.8,1961.7,2.41167]
[1742552558177,1.01996,1961.8,1961.7,1.3917]
[1742552558377,1.02001,1961.7,1961.6,0.00764]
[1742552558873,2.43631,1961.7,1961.6,1.0277]
[1742552560374,2.43631,1961.7,1961.6,0.00764]
[1742552560581,2.43631,1961.7,1961.6,1.34624]
[1742552560778,1.02022,1961.3,1961.2,3.2078]
[1742552561081,1.02031,1961.2,1961.1,1.02028]
[1742552561375,1.02031,1961.2,1960.9,5.75877]
[1742552561376,1.4163,1961.5,1961.4,1.02016]
[1742552561581,2.43641,1961.5,1961.4,1.02016]
[1742552561982,1.4163,1961.5,1961.4,1.02016]
[1742552562183,1.0201,1961.6,1961.5,1.02011]
[1742552562486,2.4065,1961.6,1961.5,1.02011]
[1742552563377,1.01996,1961.8,1961.7,1.01998]
[1742552563578,1.02006,1961.7,1961.6,1.02003]
[1742552563788,1.02006,1961.7,1961.6,1.3163]
[1742552563978,1.02006,1961.7,1961.6,42.1163]
[1742552564177,1.02016,1961.4,1961.3,0.00764]
[1742552564578,11.12031,1961.8,1961.3,2.55813]
[1742552564780,7.07431,1961.8,1961.4,40.8]
[1742552564982,1.02005,1961.7,1961.6,1.02003]
[1742552565183,2.33658,1961.8,1961.7,1.02001]
[1742552565382,2.42298,1961.8,1961.7,1.02001]
[1742552566384,1.01998,1961.8,1961.7,1.02001]
[1742552566586,0.00764,1961.9,1961.8,1.01996]
[1742552566780,0.00764,1961.9,1961.8,2.36096]
[1742552567484,2.42274,1962.3,1961.9,1.0199]
[1742552567689,2.42274,1962.3,1962.2,1.01975]
[1742552568087,1.01978,1962.2,1962.1,1.01976]
[1742552568288,2.34338,1962.2,1962.1,1.01976]
[1742552568591,1.01978,1962.2,1962.1,1.01976]
[1742552569184,1.33124,1962.3,1962.2,1.01975]
[1742552569391,0.00764,1962.3,1962.2,1.01975]
[1742552569586,0.00764,1962.3,1962.2,2.36795]
[1742552570591,0.00764,1962.3,1962.2,1.01975]
[1742552570784,0.00764,1962.3,1962.2,2.36795]
[1742552570984,0.00764,1962.3,1962.2,43.16795]
[1742552571181,1.02734,1962.3,1962.2,43.16795]
[1742552571584,1.02734,1962.3,1962.2,42.1482]
[1742552571890,1.0198,1962.1,1962.0,1.01984]
[1742552572093,1.0198,1962.1,1962.0,2.42974]
[1742552572484,2.32788,1962.2,1962.1,1.0198]
[1742552573180,1.0198,1962.1,1962.0,2.42972]
[1742552573385,1.01979,1962.2,1962.0,2.42972]
[1742552573588,1.01979,1962.2,1962.1,1.0198]
[1742552573888,2.32789,1962.2,1962.1,1.0198]
[1742552574089,1.0198,1962.1,1962.0,2.42972]
[1742552574290,2.4332,1962.1,1962.0,2.42972]
[1742552574587,2.4332,1962.1,1962.0,1.4099]
[1742552574791,2.4332,1962.1,1962.0,2.42975]
[1742552575094,1.01985,1962.0,1961.9,40.8]
[1742552575289,1.01985,1962.0,1961.8,1.01994]
[1742552575290,1.4134,1962.0,1961.8,1.4166]
[1742552575590,1.4134,1962.0,1961.6,4.22783]
[1742552575591,1.02001,1961.7,1961.6,4.22783]
[1742552575792,1.02001,1961.7,1961.6,2.43663]
[1742552575987,2.4334,1961.8,1961.7,1.02001]
[1742552576187,2.4334,1961.8,1961.7,1.4166]
[1742552576393,2.4334,1961.8,1961.7,2.43661]
[1742552576594,2.4334,1961.8,1961.7,1.4166]
[1742552577095,2.4334,1961.8,1961.7,2.43661]
[1742552577296,1.4134,1961.8,1961.7,2.43661]
[1742552577594,5.3252,1962.0,1961.8,1.01996]
[1742552577595,1.01993,1961.9,1961.8,1.01996]
[1742552577797,2.32793,1961.9,1961.8,1.01996]
[1742552578190,1.308,1961.9,1961.8,1.01996]
[1742552578393,2.3279,1961.9,1961.8,1.01996]
[1742552578794,7.1868,1962.1,1961.8,2.5499]
[1742552578992,2.32777,1962.2,1962.1,1.0198]
[1742552580188,1.308,1962.2,1962.1,1.0198]
[1742552580395,2.32775,1962.2,1962.1,1.0198]
[1742552580794,1.308,1962.2,1962.1,1.0198]
[1742552580990,2.32775,1962.2,1962.1,1.0198]
[1742552581189,0.00764,1962.3,1962.2,1.01975]
[1742552581394,0.00764,1962.3,1962.2,2.36095]
[1742552581597,3.969,1962.8,1962.7,1.01949]
[1742552581997,1.01945,1962.8,1962.7,1.01949]
[1742552582196,2.33535,1962.8,1962.7,41.81949]
[1742552582407,2.33535,1962.8,1962.7,40.8]
[1742552584906,1.01949,1962.7,1962.6,0.00764]
[1742552585102,6.30809,1962.7,1962.6,0.00764]
[1742552586711,6.30809,1962.7,1962.6,1.02718]
[1742552586912,6.30809,1962.7,1962.6,0.00764]
[1742552587612,8.4964,1962.7,1962.0,0.6956]
[1742552587815,1.0198,1962.2,1962.1,2.44596]
[1742552588010,1.0198,1962.2,1962.1,1.4262]
[1742552588216,3.2078,1962.3,1961.6,1.02005]
[1742552588408,3.2078,1961.9,1961.4,5.3069]
[1742552588713,1.02027,1961.2,1961.1,3.2078]
[1742552588908,1.02037,1961.0,1960.9,4.634]
[1742552589113,1.02056,1960.7,1960.5,7.8237]
[1742552589409,1.02051,1960.8,1960.6,1.02055]
[1742552589611,1.02053,1960.7,1960.6,1.02055]
[1742552589811,0.00764,1960.8,1960.5,7.8237]
[1742552589812,2.55884,1960.8,1960.5,7.8237]
[1742552590013,0.00764,1960.8,1960.5,7.8237]
[1742552590317,1.02063,1960.5,1960.4,11.93116752]
[1742552590509,1.02063,1960.5,1960.4,13.33366752]
[1742552590816,1.02063,1960.5,1960.4,11.93116752]
[1742552591007,1.02063,1960.5,1960.4,40.80764]
[1742552591412,2.34363,1960.5,1960.4,40.80764]
[1742552592721,1.02084,1960.2,1960.1,1.02083]
[1742552592923,2.34367,1960.5,1960.3,1.02074]
[1742552593110,2.34367,1960.5,1960.3,1.0207]
[1742552593313,1.02072,1960.4,1960.2,2.42408]
[1742552593512,1.02074,1960.3,1960.2,1.4033]
[1742552593712,2.41514,1960.3,1960.2,42.2033]
[1742552594117,2.41514,1960.3,1960.2,40.8]
[1742552594616,9.54794,1960.3,1960.2,40.8]
[1742552594818,9.54594,1960.3,1960.2,40.8]
[1742552595118,9.54594,1960.3,1960.2,41.82079]
[1742552595322,9.54594,1960.3,1960.2,40.8]
[1742552595819,1.3944,1960.3,1960.2,41.82079]
[1742552596028,1.0207,1960.4,1960.3,1.02074]
[1742552596325,1.02074,1960.3,1960.2,40.8]
[1742552596512,1.02074,1960.3,1960.2,41.82079]
[1742552596716,1.02074,1960.3,1960.2,43.21149]
[1742552597122,1.3664,1960.5,1960.2,42.1907]
[1742552597323,0.00764,1960.8,1960.4,5.75945]
[1742552597524,1.02057,1960.7,1960.6,1.02053]
[1742552597718,2.39453,1960.8,1960.7,1.02053]
[1742552597913,0.00764,1960.8,1960.7,1.02053]
[1742552598125,0.00764,1960.8,1960.7,43.21123]
[1742552598326,1.02036,1961.1,1961.0,1.02037]
[1742552598535,4.22803,1961.3,1961.2,1.02027]
[1742552598824,1.02022,1961.3,1961.2,1.02027]
[1742552599026,5.59439,1961.4,1961.3,1.02022]
[1742552599222,1.02019,1961.4,1961.3,2.30662]
[1742552599424,4.94014,1961.5,1961.4,1.02016]
[1742552599619,1.02778,1961.5,1961.4,2.30656]
[1742552599829,1.02778,1961.5,1961.4,1.2864]
[1742552600122,1.02022,1961.3,1961.2,40.80764]
[1742552600328,4.22802,1961.3,1961.2,40.80764]
[1742552600926,5.57972,1961.3,1961.2,40.80764]
[1742552601222,1.02048,1960.8,1960.7,2.30692]
[1742552601820,1.02048,1960.8,1960.7,42.0864]
[1742552602123,1.02068,1960.4,1960.3,4.2285]
[1742552602315,1.02068,1960.4,1960.3,4.22854]
[1742552602519,1.02068,1960.4,1960.3,45.02854]
[1742552603023,1.02068,1960.4,1960.3,46.34564]
[1742552603230,2.39038,1960.5,1960.4,1.02068]
[1742552603423,2.39038,1960.5,1960.4,2.33778]
[1742552604125,1.02063,1960.5,1960.4,2.33778]
[1742552604326,1.02063,1960.5,1960.4,1.3171]
[1742552605628,1.02068,1960.4,1960.3,44.0078]
[1742552605829,2.32058,1960.4,1960.3,40.8]
[1742552606721,2.32058,1960.4,1960.2,0.00764]
[1742552606722,1.02074,1960.3,1960.2,0.00764]
[1742552606922,2.32064,1960.3,1960.2,0.00764]
[1742552607226,2.32064,1960.3,1960.2,40.80764]
[1742552608133,2.32064,1960.3,1960.2,0.00764]
[1742552608328,5.52844,1960.3,1960.2,0.00764]
[1742552608927,2.32064,1960.3,1960.2,1.02843]
[1742552609231,1.02835,1960.4,1960.3,1.02074]
[1742552609434,1.02835,1960.4,1960.3,2.37174]
[1742552609932,1.02835,1960.4,1960.3,1.351]
[1742552610131,2.31745,1960.4,1960.3,1.351]
[1742552610829,5.52525,1960.4,1960.3,42.151]
[1742552611025,2.31745,1960.4,1960.3,42.151]
[1742552611327,5.52525,1960.4,1960.3,43.17174]
[1742552611632,1.02835,1960.4,1960.3,43.17174]
[1742552612024,1.02832,1960.4,1960.3,43.17174]
[1742552612633,1.02832,1960.4,1960.3,42.151]
[1742552614133,0.00764,1960.4,1960.3,43.17174]
[1742552614332,1.02832,1960.4,1960.3,43.17174]
[1742552615223,0.00764,1960.4,1960.3,43.17174]
[1742552615529,1.02832,1960.4,1960.3,42.151]
[1742552615935,1.02832,1960.4,1960.3,43.17174]
[1742552616230,1.02832,1960.4,1960.3,40.8]
[1742552616435,1.02074,1960.3,1960.2,0.00764]
[1742552616639,2.34074,1960.3,1960.2,0.00764]
[1742552616823,2.34074,1960.3,1960.2,40.80764]
[1742552617540,2.34074,1960.3,1960.2,41.82843]
[1742552618630,1.02074,1960.3,1960.2,41.82843]
[1742552619134,1.02074,1960.3,1960.2,43.20923]
[1742552621137,1.02074,1960.3,1960.2,42.18844]
[1742552621429,2.38374,1960.3,1960.2,42.18844]
[1742552621635,2.38374,1960.3,1960.2,40.80764]
[1742552621831,2.38374,1960.3,1960.2,0.00764]
[1742552622033,3.08224,1960.3,1960.2,0.00764]
[1742552623034,1.02095,1959.9,1959.8,40.8]
[1742552623243,4.22875,1959.9,1959.8,40.8]
[1742552623833,5.62185,1959.9,1959.6,0.06239]
[1742552624136,4.22885,1959.7,1959.1,3.2078]
[1742552624436,2.55301,1959.5,1959.3,3.2078]
[1742552624626,1.02126,1959.4,1959.3,4.22902]
[1742552624823,1.02126,1959.3,1959.2,41.82893]
[1742552625337,1.02126,1959.3,1959.2,40.80764]
[1742552625735,1.02125,1959.4,1959.2,41.82895]
[1742552625928,0.6639,1959.8,1959.2,41.82895]
[1742552625929,2.55234,1960.0,1959.7,1.02098]
[1742552626131,1.02103,1959.8,1959.7,1.021]
[1742552626829,1.02093,1960.0,1959.9,1.0209]
[1742552627035,6.40785,1960.3,1959.9,5.76011]
[1742552627336,1.02848,1960.1,1960.0,1.02089]
[1742552627837,1.02093,1960.0,1959.9,1.0209]
[1742552628039,1.02095,1959.9,1959.8,1.7054]
[1742552629939,1.02853,1960.1,1960.0,1.02089]
[1742552630533,2.44573,1960.1,1960.0,1.02089]
[1742552630734,2.44573,1960.1,1959.8,5.55993]
[1742552630735,1.02095,1959.9,1959.8,5.55993]
[1742552631129,1.02094,1960.0,1959.9,1.02089]
[1742552631335,1.02095,1959.9,1959.8,5.55997]
[1742552632634,1.021,1959.8,1959.7,1.021]
[1742552633534,1.02099,1959.9,1959.8,1.02095]
[1742552633735,1.02092,1960.0,1959.9,1.02095]
[1742552633936,4.86352,1960.1,1960.0,1.02089]
[1742552634137,1.02852,1960.1,1960.0,1.02089]
[1742552635436,0.00764,1960.1,1960.0,1.02089]
[1742552635746,1.02061,1960.6,1960.5,1.02055]
[1742552635943,1.02061,1960.6,1960.5,4.22835]
[1742552636238,1.02068,1960.4,1960.3,8.0645]
[1742552636437,1.02068,1960.4,1960.3,4.2285]
[1742552636637,1.02068,1960.4,1960.3,45.0285]
[1742552636840,1.02068,1960.4,1960.3,40.8]
[1742552637044,1.02068,1960.4,1960.3,41.82074]
[1742552637240,1.02068,1960.4,1960.3,45.02854]
[1742552637445,1.02068,1960.4,1960.3,41.82074]
[1742552637838,1.02068,1960.4,1960.3,40.8]
[1742552638038,1.02068,1960.4,1960.2,0.00764]
[1742552638039,1.02074,1960.3,1960.2,0.00764]
[1742552638542,1.02074,1960.3,1960.2,40.80764]
[1742552638738,1.71064,1960.3,1960.2,40.80764]
[1742552640345,1.71064,1960.3,1960.2,0.00764]
[1742552641145,1.71064,1960.3,1960.2,1.02843]
[1742552641343,0.68154,1960.5,1960.2,0.00764]
[1742552641553,1.7022,1960.5,1960.4,4.22848]
[1742552641744,1.0283,1960.5,1960.4,4.22848]
[1742552642853,1.02827,1960.5,1960.4,4.22848]
[1742552643245,1.02051,1960.8,1960.7,1.02053]
[1742552643537,1.02053,1960.8,1960.6,3.2078]
[1742552643742,1.02053,1960.8,1960.7,1.02047]
[1742552643943,1.4186,1961.0,1960.6,5.75923]
[1742552644241,1.4186,1961.0,1960.9,1.02042]
[1742552644242,2.43901,1961.0,1960.9,1.02042]
[1742552644542,4.83125,1961.3,1961.2,1.02027]
[1742552644741,2.33681,1961.4,1961.3,1.02022]
[1742552644951,1.02022,1961.3,1961.2,4.22803]
[1742552645147,2.33682,1961.3,1961.2,45.03567]
[1742552645550,2.33682,1961.3,1961.2,45.03571]
[1742552645738,2.33682,1961.3,1961.2,40.80764]
[1742552645939,3.69092,1961.3,1961.2,40.80764]
[1742552646145,7.50492,1961.3,1961.2,0.00764]
[1742552646847,2.33682,1961.3,1961.2,4.23571]
[1742552647152,2.33682,1961.3,1961.2,45.03571]
[1742552647450,1.02022,1961.3,1961.2,45.03566]
[1742552647639,1.02022,1961.3,1961.2,40.80764]
[1742552647843,1.02022,1961.3,1961.2,0.00764]
[1742552648047,1.02022,1961.3,1961.2,1.02791]
[1742552648349,1.02022,1961.3,1961.2,0.00764]
[1742552648549,1.02022,1961.3,1961.2,1.02791]
[1742552649851,1.02022,1961.3,1961.2,0.00764]
[1742552651351,4.22802,1961.3,1961.2,0.00764]
[1742552653555,1.02048,1960.8,1960.7,40.8]
[1742552654150,1.02048,1960.8,1960.7,41.82053]
[1742552654852,4.80347,1960.9,1960.8,1.02048]
[1742552655552,5.1616,1960.9,1960.7,40.8]
[1742552655855,1.02048,1960.8,1960.7,41.82049]
[1742552656050,6.18206,1960.9,1960.8,1.02048]
[1742552656253,4.80346,1960.9,1960.8,1.02048]
[1742552656656,1.02048,1960.8,1960.7,41.82048]
[1742552657158,2.33278,1960.8,1960.7,40.8]
[1742552658657,2.33278,1960.8,1960.6,3.21544]
[1742552658658,1.02053,1960.7,1960.6,3.21544]
[1742552658850,3.01123,1960.7,1960.6,0.00764]
[1742552659258,3.01123,1960.7,1960.6,40.80764]
[1742552660759,1.02053,1960.7,1960.6,40.80764]
[1742552660957,2.42143,1960.7,1960.6,40.80764]
[1742552661150,1.02068,1960.4,1960.3,3.2078]
[1742552661355,4.78068,1960.4,1960.3,3.2078]
[1742552661857,4.78068,1960.4,1960.3,44.0078]
[1742552662750,4.78068,1960.4,1960.3,40.8]
[1742552664161,4.78068,1960.4,1960.3,41.82074]
[1742552664760,4.78068,1960.4,1960.3,42.2112]
[1742552665160,4.78068,1960.4,1960.3,40.8]
[1742552665564,6.14888,1960.4,1960.3,40.8]
[1742552669567,6.14888,1960.4,1960.3,42.1484]
[1742552669767,1.02068,1960.4,1960.3,43.16914]
[1742552670067,1.02068,1960.4,1960.3,46.37694]
[1742552670461,4.76068,1960.5,1960.4,1.02068]
[1742552670662,4.76068,1960.5,1960.4,3.06578]
[1742552670973,4.76058,1960.7,1960.6,1.02053]
[1742552671261,1.02051,1960.8,1960.7,1.02048]
[1742552671668,1.02051,1960.8,1960.7,2.36038]
[1742552672056,1.02051,1960.8,1960.7,1.3399]
[1742552672261,1.02051,1960.8,1960.7,2.36043]
[1742552672461,7.66304,1961.0,1960.8,1.02042]
[1742552672462,1.02046,1960.9,1960.8,1.02042]
[1742552672663,1.02046,1960.9,1960.8,1.69762]
[1742552673573,1.02041,1961.0,1960.9,1.02042]
[1742552673870,1.02041,1961.0,1960.9,2.36032]
[1742552676765,1.02036,1961.1,1961.0,1.02032]
[1742552676966,0.00764,1961.4,1961.3,1.02022]
[1742552676967,1.02786,1961.4,1961.3,1.02022]
[1742552678669,0.00764,1961.4,1961.3,41.82022]
[1742552679573,1.0278,1961.4,1961.3,41.82022]
[1742552680175,1.0278,1961.4,1961.3,1.02022]
[1742552680371,1.02022,1961.3,1961.2,4.94077]
[1742552680567,2.31462,1961.3,1961.2,4.94077]
[1742552680772,2.31462,1961.3,1961.2,3.2078]
[1742552681075,1.02032,1961.1,1961.0,4.88833]
[1742552681272,1.02032,1961.1,1961.0,3.868]
[1742552681579,1.02032,1961.1,1961.0,3.2078]
[1742552681979,2.31472,1961.1,1961.0,3.2078]
[1742552682772,2.31472,1961.1,1961.0,4.22817]
[1742552682978,3.72,1961.2,1961.0,4.22817]
[1742552683179,1.02032,1961.1,1961.0,4.22817]
[1742552683474,6.03469,1961.2,1961.1,1.02032]
[1742552683683,4.74029,1961.2,1961.1,1.02032]
[1742552684079,3.72,1961.2,1961.1,1.02032]
[1742552684376,1.02027,1961.2,1961.1,1.67328]
[1742552685977,2.36796,1961.3,1961.2,1.02027]
[1742552689184,2.31612,1961.1,1961.0,4.87073]
[1742552689776,2.31612,1961.1,1961.0,3.2078]
[1742552690080,2.31612,1961.1,1961.0,4.22817]
[1742552691693,1.02029,1961.2,1961.1,1.02032]
[1742552691983,6.27608,1961.4,1961.1,1.02032]
[1742552691984,1.02027,1961.3,1961.2,1.02022]
[1742552692781,2.38437,1961.3,1961.2,1.02022]
[1742552693585,2.38432,1961.3,1961.2,1.02022]
[1742552694181,3.69564,1961.4,1961.2,1.02022]
[1742552694182,0.00764,1961.4,1961.3,1.02022]
[1742552694382,2.38406,1961.8,1961.7,1.02001]
[1742552694581,2.38406,1961.8,1961.7,4.22781]
[1742552694983,2.38406,1961.8,1961.7,45.02781]
[1742552695182,1.3641,1961.8,1961.7,45.02781]
[1742552695378,1.0199,1961.9,1961.8,1.01996]
[1742552695589,1.02754,1961.9,1961.8,2.38106]
[1742552697080,0.00764,1961.9,1961.8,2.38106]
[1742552697283,21.6180249,1962.2,1962.1,1.0198]
[1742552697483,0.643,1962.4,1962.3,1.0197]
[1742552697788,0.643,1962.4,1962.3,45.0275]
[1742552697989,1.2976,1962.5,1962.4,1.01964]
[1742552698290,1.2976,1962.5,1962.4,2.39574]
[1742552698587,1.2976,1962.7,1962.6,1.01954]
[1742552698885,22.2686649,1962.8,1962.7,1.01949]
[1742552699081,21.6256649,1962.8,1962.7,2.31049]
[1742552699487,20.5809849,1962.8,1962.7,5.99349]
[1742552699689,15.1466249,1962.8,1962.7,5.99349]
[1742552699879,15.1466249,1962.8,1962.7,8.49349]
[1742552700281,12.8117349,1962.8,1962.7,8.49349]
[1742552700483,0.00764,1962.8,1962.7,8.49349]
[1742552701993,1.01911,1963.6,1963.5,1.01902]
[1742552702190,1.01923,1963.3,1963.2,1.01916]
[1742552704491,0.00764,1963.4,1963.3,1.01918]
[1742552704688,0.00764,1963.4,1963.3,48.70998]
[1742552705086,0.00764,1963.4,1963.3,49.37958]
[1742552707597,1.0189,1963.9,1963.8,1.01885]
[1742552707894,2.3724,1963.9,1963.8,1.01885]
[1742552709490,1.3535,1963.9,1963.8,1.01885]
[1742552709797,0.00506669,1964.0,1963.9,1.01887]
[1742552709993,0.00506669,1964.0,1963.9,2.34127]
[1742552711585,0.00506669,1964.0,1963.9,1.01887]
[1742552712588,0.00506669,1964.0,1963.9,2.36077]
[1742552714998,1.32786669,1964.0,1963.9,2.36077]
[1742552718997,2.34667669,1964.0,1963.9,2.36077]
[1742552719296,1.32786669,1964.0,1963.9,2.36077]
[1742552719702,0.00506669,1964.0,1963.9,2.36077]
[1742552720703,1.42046669,1964.0,1963.9,2.36077]
[1742552720895,0.00506669,1964.0,1963.9,4.86077]
[1742552721401,0.00506669,1964.0,1963.9,2.36077]
[1742552721596,0.00506669,1964.0,1963.9,43.16077]
[1742552721796,1.42046669,1964.0,1963.9,43.16077]
[1742552722698,2.43927669,1964.0,1963.9,43.16077]
[1742552723703,1.42046669,1964.0,1963.9,43.16077]
[1742552724093,0.00506669,1964.0,1963.9,43.16077]
[1742552726103,1.02387669,1964.0,1963.9,43.16077]
[1742552726504,1.72107669,1964.0,1963.9,42.1419]
[1742552726806,1.72107669,1964.0,1963.9,43.16077]
[1742552726999,1.72107669,1964.0,1963.9,41.81887]
[1742552727504,1.72107669,1964.0,1963.9,40.8]
[1742552727695,1.01887,1963.9,1963.8,3.2078]
[1742552727900,1.01902,1963.6,1963.5,5.54593]
[1742552728202,1.01902,1963.6,1963.5,44.0078]
[1742552728402,1.01902,1963.6,1963.5,45.02687]
[1742552728603,1.01902,1963.6,1963.5,41.81907]
[1742552728807,1.01902,1963.6,1963.5,45.02687]
[1742552729302,2.34197,1963.7,1963.6,1.01902]
[1742552729499,2.34197,1963.7,1963.6,2.35412]
[1742552730397,1.01902,1963.6,1963.5,45.02684]
[1742552730602,2.44452,1963.6,1963.5,45.02684]
[1742552731705,1.4255,1963.6,1963.5,45.02684]
[1742552731905,1.01901,1963.7,1963.6,1.01902]
[1742552732208,2.44451,1963.7,1963.6,2.35412]
[1742552733510,1.01902,1963.6,1963.5,45.02683]
[1742552733700,2.32232,1963.6,1963.5,45.02683]
[1742552734612,2.32232,1963.6,1963.5,44.0078]
[1742552735406,2.32232,1963.6,1963.5,41.81907]
[1742552735605,2.32232,1963.6,1963.5,40.8]
[1742552735908,5.94732,1963.6,1963.5,40.8]
[1742552736107,1.01923,1963.2,1963.1,4.23468]
[1742552736308,1.01923,1963.2,1963.1,0.00764]
[1742552736504,1.01923,1963.2,1963.1,40.80764]
[1742552736708,2.41493,1963.2,1963.1,40.80764]
[1742552737315,1.01938,1962.9,1962.8,3.2078]
[1742552737810,1.01938,1962.9,1962.8,44.0078]
[1742552738010,2.41508,1962.9,1962.8,44.0078]
[1742552738409,2.41508,1962.9,1962.8,45.02724]
[1742552738614,2.41508,1962.9,1962.8,44.0078]
[1742552741015,6.02908,1962.9,1962.8,45.02724]
[1742552741309,6.02908,1962.9,1962.8,45.3064]
[1742552741506,5.75585,1963.3,1962.8,45.3064]
[1742552741709,2.41855,1963.2,1963.1,1.01928]
[1742552741906,1.01921,1963.3,1963.2,1.01918]
[1742552742106,6.16559,1963.6,1963.4,1.01908]
[1742552742303,1.01913,1963.4,1963.3,3.2078]
[1742552742507,1.01913,1963.4,1963.3,4.22695]
[1742552742717,1.01913,1963.4,1963.3,45.02695]
[1742552743318,1.01913,1963.4,1963.3,44.0078]
[1742552743505,1.01913,1963.4,1963.1,3.2078]
[1742552743506,1.01923,1963.2,1963.1,3.2078]
[1742552743718,1.01923,1963.2,1963.1,4.6029]
[1742552744025,1.01923,1963.2,1963.1,42.1951]
[1742552744426,2.41853,1963.2,1963.1,40.8]
[1742552744620,1.01938,1962.9,1962.8,2.41222]